bitfinex-derivatives/quotes_SOLF0:USTF0_20241127
["timestamp","ask_amount","ask_price","bid_price","bid_amount"]
[1732747088103,2.0652,241.8,241.77,2.0654]
[1732747088307,2.0652,241.8,241.76,4.3655]
[1732747088602,6.29301469,241.84,241.76,2.3]
[1732747088797,2.0652,241.81,241.77,2.0654]
[1732747090999,6.29301469,241.81,241.75,50.24158168]
[1732747091607,2.0656,241.75,241.72,2.3]
[1732747091803,2.0656,241.75,241.71,2.066]
[1732747092200,2.0656,241.76,241.72,2.0659]
[1732747092799,1.2763,241.8,241.7,2.066]
[1732747093003,6.29301469,241.78,241.7,2.066]
[1732747093305,6.29301469,241.78,241.69,2.3]
[1732747093601,2.0658,241.73,241.69,4.3661]
[1732747094203,2.0659,241.72,241.69,2.3]
[1732747094410,6.29301469,241.76,241.69,2.3]
[1732747094706,2.0659,241.73,241.69,4.3661]
[1732747095103,2.0659,241.73,241.69,2.0661]
[1732747095300,6.29301469,241.76,241.67,8.59301469]
[1732747095506,6.29301469,241.74,241.58,1.2315]
[1732747095698,6.29301469,241.74,241.64,6.29301469]
[1732747095900,6.29301469,241.74,241.65,2.3]
[1732747096101,1.2763,241.8,241.64,6.29301469]
[1732747096102,6.29301469,241.72,241.64,6.29301469]
[1732747096302,6.29301469,241.72,241.65,2.3]
[1732747096499,2.0663,241.68,241.65,2.3]
[1732747097110,6.29301469,241.66,241.45,2.3]
[1732747097303,1.2763,241.8,241.45,2.3]
[1732747097304,6.29301469,241.58,241.46,2.87054955]
[1732747097606,6.29301469,241.58,241.49,6.29301469]
[1732747097910,2.0673,241.56,241.49,6.29301469]
[1732747098307,2.0673,241.55,241.48,2.0679]
[1732747098503,2.0673,241.55,241.48,8.36091469]
[1732747098705,6.29301469,241.58,241.48,8.36091469]
[1732747099010,2.0673,241.55,241.48,8.36091469]
[1732747099514,6.29301469,241.56,241.48,8.36091469]
[1732747100110,2.0673,241.55,241.48,8.36091469]
[1732747100508,6.29301469,241.56,241.48,6.29301469]
[1732747101407,2.0675,241.53,241.48,6.29301469]
[1732747101606,6.29301469,241.58,241.48,6.29301469]
[1732747101814,6.29301469,241.58,241.5,6.29301469]
[1732747102007,2.0674,241.54,241.5,6.29301469]
[1732747102409,6.29301469,241.58,241.48,6.29301469]
[1732747102610,6.29301469,241.58,241.47,2.3]
[1732747102611,6.29301469,241.56,241.47,2.3]
[1732747102810,6.29301469,241.56,241.48,6.29301469]
[1732747103610,2.0676,241.53,241.48,6.29301469]
[1732747103813,6.29301469,241.56,241.48,6.29301469]
[1732747104113,2.0676,241.52,241.48,6.29301469]
[1732747104315,2.0676,241.52,241.49,6.29301469]
[1732747105014,2.0676,241.52,241.47,10.66101469]
[1732747105815,2.0676,241.53,241.47,10.66101469]
[1732747106015,30.99314298,241.64,241.49,6.29301469]
[1732747106213,6.29301469,241.6,241.51,8.36061469]
[1732747106413,2.3,241.63,241.51,6.29301469]
[1732747106612,6.29301469,241.61,241.53,8.36041469]
[1732747107517,2.0671,241.59,241.53,8.36041469]
[1732747107816,6.29301469,241.61,241.53,6.29301469]
[1732747108408,6.29301469,241.61,241.52,2.0675]
[1732747108606,6.29301469,241.59,241.52,2.0675]
[1732747109008,2.0672,241.58,241.52,2.0675]
[1732747109405,6.29301469,241.59,241.52,2.0675]
[1732747109609,2.0671,241.58,241.52,2.0675]
[1732747109809,6.29301469,241.59,241.52,2.0675]
[1732747110813,2.0672,241.57,241.52,2.0675]
[1732747112514,2.0671,241.58,241.53,2.0675]
[1732747112715,6.29301469,241.59,241.5,6.29301469]
[1732747113417,2.0672,241.57,241.52,2.0675]
[1732747114314,8.36021469,241.57,241.52,2.0675]
[1732747114508,2.0673,241.56,241.51,2.0676]
[1732747114919,6.29301469,241.55,241.49,2.3]
[1732747115515,2.0675,241.54,241.49,2.3]
[1732747115714,6.29301469,241.55,241.49,2.3]
[1732747116413,2.0676,241.53,241.49,2.3]
[1732747116817,6.29301469,241.55,241.49,2.3]
[1732747117116,6.29301469,241.53,241.48,2.0677]
[1732747118017,2.0674,241.52,241.48,2.0677]
[1732747121127,2.0674,241.52,241.49,2.0676]
[1732747122524,2.0673,241.53,241.49,2.0676]
[1732747122726,2.5109,241.58,241.51,2.0674]
[1732747122924,1.2725,241.58,241.51,6.29301469]
[1732747123122,2.067,241.56,241.49,6.29301469]
[1732747123724,2.067,241.56,241.52,2.0673]
[1732747124023,2.0669,241.56,241.49,6.29301469]
[1732747124722,2.03074574,241.73,241.51,6.29301469]
[1732747124929,6.29301469,241.6,241.52,2.3]
[1732747125128,6.29301469,241.6,241.55,2.0669]
[1732747125920,2.0667,241.58,241.55,2.0669]
[1732747127130,6.29301469,241.6,241.55,2.0669]
[1732747127433,2.4401,241.72,241.55,6.29301469]
[1732747127625,6.29301469,241.66,241.57,6.29301469]
[1732747127826,2.0663,241.63,241.57,6.29301469]
[1732747128226,2.0663,241.63,241.58,2.0666]
[1732747128623,2.0663,241.63,241.57,6.29301469]
[1732747128829,2.0663,241.63,241.59,2.0665]
[1732747129323,2.066,241.66,241.61,2.0663]
[1732747129729,2.066,241.66,241.59,8.59301469]
[1732747129934,2.066,241.66,241.61,2.0664]
[1732747130136,2.066,241.66,241.59,8.59301469]
[1732747131831,2.0658,241.68,241.61,6.29301469]
[1732747132026,12.39,241.93,241.59,2.3]
[1732747132229,2.5013,241.82,241.68,2.0658]
[1732747132430,2.5013,241.82,241.68,2.3]
[1732747132631,6.29301469,241.76,241.68,8.59301469]
[1732747132833,6.29301469,241.78,241.7,6.29301469]
[1732747133234,2.065,241.77,241.72,2.0654]
[1732747133628,6.29301469,241.78,241.72,2.0654]
[1732747133832,2.0651,241.76,241.71,2.0655]
[1732747137239,2.0652,241.75,241.71,2.0655]
[1732747137634,6.29301469,241.76,241.68,8.59301469]
[1732747137840,2.0653,241.74,241.7,2.0656]
[1732747138237,6.29301469,241.76,241.7,2.0656]
[1732747138439,6.29301469,241.76,241.69,2.0657]
[1732747139038,2.0654,241.74,241.7,2.0656]
[1732747141542,2.5013,241.82,241.69,6.29301469]
[1732747141737,6.29301469,241.78,241.72,2.0654]
[1732747142447,2.0654,241.74,241.7,2.0656]
[1732747143441,3.591,241.83,241.68,2.3]
[1732747143442,286.71740797,242.19,241.71,6.29301469]
[1732747143643,2.0648,241.8,241.75,2.0651]
[1732747143948,6.29301469,241.82,241.73,6.29301469]
[1732747144452,6.29301469,241.82,241.74,2.28]
[1732747144942,2.0649,241.79,241.74,4.3452]
[1732747146944,2.0649,241.79,241.74,2.28]
[1732747147245,2.0649,241.79,241.75,2.0652]
[1732747148445,2.0644,241.85,241.81,2.0647]
[1732747148951,2.0645,241.84,241.79,2.0648]
[1732747149640,2.0645,241.84,241.8,2.0648]
[1732747150046,2.0647,241.81,241.74,2.28]
[1732747150246,6.29301469,241.84,241.78,2.0649]
[1732747151448,2.0646,241.82,241.78,2.0649]
[1732747151853,2.0646,241.82,241.79,2.0648]
[1732747152344,2.0646,241.82,241.74,2.28]
[1732747152549,2.0645,241.83,241.75,6.29301469]
[1732747153348,6.29301469,241.8,241.71,6.29301469]
[1732747153649,6.29301469,241.8,241.72,2.28]
[1732747153844,2.065,241.77,241.74,2.0652]
[1732747154148,6.29301469,241.78,241.69,6.29301469]
[1732747154339,2.0653,241.75,241.71,2.0655]
[1732747155151,6.29301469,241.78,241.7,2.28]
[1732747155548,6.29301469,241.76,241.7,2.28]
[1732747155851,2.0653,241.74,241.7,2.0656]
[1732747156553,6.29301469,241.76,241.68,2.28]
[1732747156846,2.0653,241.74,241.68,2.28]
[1732747157549,2.0652,241.75,241.71,2.0655]
[1732747157848,6.29301469,241.77,241.68,2.28]
[1732747158053,6.29301469,241.77,241.7,2.0656]
[1732747158351,2.0652,241.75,241.7,2.0656]
[1732747158848,6.29301469,241.77,241.7,2.0656]
[1732747159054,2.0653,241.75,241.71,2.0655]
[1732747159952,2.0653,241.74,241.7,2.0656]
[1732747161447,2.0653,241.74,241.68,2.28]
[1732747161448,6.29301469,241.78,241.68,2.28]
[1732747161653,3.6804,241.81,241.72,2.0654]
[1732747161850,6.29301469,241.79,241.72,2.0654]
[1732747162552,6.29301469,241.8,241.72,2.0654]
[1732747162747,6.29301469,241.77,241.68,2.28]
[1732747163448,2.0652,241.75,241.71,2.0655]
[1732747165345,2.0653,241.74,241.71,2.0655]
[1732747168656,2.0652,241.75,241.71,2.0655]
[1732747170651,6.29301469,241.79,241.71,2.0655]
[1732747170857,2.0653,241.74,241.71,2.0655]
[1732747172453,6.29301469,241.79,241.69,6.29301469]
[1732747173953,2.0653,241.75,241.71,2.0655]
[1732747175258,6.29301469,241.79,241.71,2.0655]
[1732747175753,2.0653,241.75,241.71,2.0655]
[1732747175954,6.29301469,241.76,241.64,2.28]
[1732747176157,6.29301469,241.73,241.65,2.85841956]
[1732747176355,6.29301469,241.73,241.63,2.28]
[1732747176948,2.0657,241.69,241.65,2.066]
[1732747177152,2.0657,241.69,241.64,2.28]
[1732747177347,6.29301469,241.73,241.61,6.29301469]
[1732747177548,2.0659,241.67,241.62,2.28]
[1732747178347,1.2415,241.72,241.62,2.28]
[1732747178549,1.2415,241.72,241.63,2.0662]
[1732747178952,2.0657,241.7,241.63,2.0662]
[1732747179157,6.29301469,241.7,241.63,2.0662]
[1732747179552,6.29301469,241.7,241.64,2.0661]
[1732747182155,2.0659,241.68,241.64,2.0661]
[1732747184360,2.0659,241.67,241.64,2.0661]
[1732747185759,2.0658,241.69,241.65,2.066]
[1732747185957,6.29301469,241.7,241.65,2.066]
[1732747186554,2.0659,241.67,241.64,2.0661]
[1732747188061,6.29301469,241.7,241.62,2.0662]
[1732747188256,6.29301469,241.7,241.58,6.29301469]
[1732747188560,6.29301469,241.67,241.58,2.28]
[1732747188756,6.29301469,241.67,241.58,8.57301469]
[1732747188956,2.0662,241.64,241.61,2.0664]
[1732747189964,6.29301469,241.67,241.58,8.57301469]
[1732747190264,2.0661,241.64,241.61,2.0664]
[1732747191563,2.5453,241.71,241.58,8.57301469]
[1732747191768,2.0661,241.65,241.62,2.0663]
[1732747192463,2.5453,241.71,241.58,8.57301469]
[1732747192760,2.066,241.66,241.58,8.57301469]
[1732747192966,6.29301469,241.7,241.58,6.29301469]
[1732747193168,2.0661,241.65,241.61,2.0663]
[1732747193569,2.0661,241.65,241.59,2.28]
[1732747195264,2.0661,241.65,241.62,2.0663]
[1732747200166,2.5453,241.71,241.59,2.28]
[1732747200373,1.2619,241.71,241.59,2.28]
[1732747201572,1.2619,241.71,241.59,37.73562262]
[1732747202569,2.0658,241.68,241.59,37.73562262]
[1732747203477,2.0658,241.68,241.64,2.0661]
[1732747203980,2.066,241.66,241.62,2.0662]
[1732747204476,2.0661,241.65,241.62,2.0662]
[1732747207771,2.0663,241.63,241.6,2.0665]
[1732747207973,3.5419,241.71,241.53,1.3043]
[1732747208175,3.5419,241.71,241.54,2.28]
[1732747208579,2.0664,241.61,241.57,2.0666]
[1732747208779,3.5419,241.71,241.54,2.28]
[1732747209174,2.0665,241.61,241.57,2.0667]
[1732747211384,3.5419,241.71,241.57,2.0667]
[1732747211579,2.0665,241.6,241.56,2.0668]
[1732747211782,1.2619,241.71,241.54,2.28]
[1732747212084,2.066,241.66,241.62,2.0662]
[1732747212283,1.2619,241.71,241.54,2.28]
[1732747212674,2.0661,241.65,241.59,2.0665]
[1732747212877,1.2619,241.71,241.54,2.28]
[1732747214084,1.2619,241.71,241.6,2.0664]
[1732747215985,2.0662,241.64,241.61,2.0664]
[1732747216978,2.0661,241.64,241.6,2.0664]
[1732747217286,1.2619,241.71,241.6,2.0664]
[1732747217488,1.2619,241.71,241.54,2.28]
[1732747217782,1.2619,241.71,241.59,2.0665]
[1732747218588,2.0663,241.63,241.6,2.0664]
[1732747220286,2.0663,241.63,241.57,2.28]
[1732747220991,2.0663,241.63,241.56,2.28]
[1732747221384,2.0663,241.63,241.5,6.43215613]
[1732747221591,2.0663,241.63,241.51,2.28]
[1732747222092,2.0663,241.63,241.6,2.0664]
[1732747226491,3.5419,241.71,241.57,2.28]
[1732747227292,2.0658,241.66,241.62,2.066]
[1732747227491,3.5419,241.71,241.57,0.98100491]
[1732747228097,2.066,241.64,241.58,12.94621199]
[1732747228392,2.066,241.64,241.59,3.13810759]
[1732747228598,2.0659,241.65,241.61,2.0661]
[1732747229592,1.2619,241.71,241.57,0.98100491]
[1732747229903,2.0658,241.67,241.63,2.066]
[1732747230192,2.0658,241.67,241.57,0.98100491]
[1732747230193,3.3272,241.71,241.67,2.0656]
[1732747230393,3.3272,241.71,241.58,13.48765714]
[1732747230701,1.2619,241.71,241.59,25.20743584]
[1732747230900,1.2619,241.71,241.6,25.20743584]
[1732747231096,1.2619,241.71,241.61,25.20743584]
[1732747231401,1.2415,241.72,241.62,12.9458787]
[1732747231697,2.0654,241.71,241.67,2.0656]
[1732747231898,1.2415,241.72,241.64,2.28]
[1732747232101,2.0655,241.71,241.67,2.0657]
[1732747232397,2.0655,241.71,241.64,2.28]
[1732747232398,2.4916,241.77,241.64,2.28]
[1732747232597,2.0652,241.74,241.7,2.0655]
[1732747233492,2.4916,241.77,241.72,2.0654]
[1732747234901,2.4916,241.77,241.64,2.28]
[1732747235095,2.4916,241.77,241.71,2.0654]
[1732747235096,2.0651,241.75,241.71,2.0654]
[1732747235495,2.0651,241.75,241.72,2.0654]
[1732747237297,2.0649,241.78,241.74,2.0652]
[1732747238898,55.46646027,241.85,241.74,2.28]
[1732747239201,52.95316027,241.85,241.74,2.28]
[1732747239995,2.28,241.92,241.74,2.28]
[1732747241002,2.0642,241.86,241.74,2.28]
[1732747241600,2.0642,241.88,241.84,2.0644]
[1732747242193,2.064,241.89,241.84,2.0644]
[1732747242393,3.7259,241.93,241.8,2.28]
[1732747242901,2.0639,241.9,241.8,2.28]
[1732747243101,2.4955,241.93,241.86,2.0643]
[1732747243296,2.0639,241.91,241.86,2.0643]
[1732747243796,2.4955,241.93,241.8,2.28]
[1732747244002,2.4955,241.93,241.87,2.0642]
[1732747244199,2.4955,241.93,241.8,2.28]
[1732747244899,2.0639,241.91,241.87,2.0641]
[1732747245900,1.2494,241.93,241.8,2.28]
[1732747246107,3.3131,241.93,241.8,2.28]
[1732747246302,3.3131,241.93,241.81,1.2592]
[1732747246303,1.2494,241.93,241.81,1.2592]
[1732747246801,2.0638,241.92,241.88,2.0641]
[1732747247504,1.2494,241.93,241.81,1.2592]
[1732747247805,2.0638,241.91,241.87,2.0641]
[1732747248402,1.2494,241.93,241.86,2.28]
[1732747248603,1.2494,241.93,241.72,2.98048975]
[1732747248798,1.2494,241.93,241.74,1.2429]
[1732747249215,1.2494,241.93,241.75,2.0244627]
[1732747249610,2.0642,241.87,241.82,2.0646]
[1732747250604,12.39,242.09,241.8,2.28]
[1732747250914,3.5695,242.08,241.8,2.28]
[1732747251114,12.39,242.06,241.8,2.28]
[1732747251613,2.0637,241.93,241.88,2.0641]
[1732747252717,2.0637,241.93,241.86,2.28]
[1732747253209,2.0637,241.93,241.88,2.0641]
[1732747254115,2.0637,241.93,241.86,2.28]
[1732747254314,2.0637,241.93,241.88,2.0641]
[1732747254816,2.0637,241.93,241.86,2.28]
[1732747255010,3.9105,241.99,241.86,2.28]
[1732747255407,6.29429926,241.96,241.86,8.57429926]
[1732747255608,2.0636,241.94,241.86,8.57429926]
[1732747256921,2.0636,241.94,241.89,2.0639]
[1732747257121,6.29429926,241.96,241.89,2.0639]
[1732747257318,2.0637,241.93,241.89,2.0639]
[1732747257511,6.29429926,241.96,241.87,2.0641]
[1732747257710,3.9105,241.99,241.87,2.0641]
[1732747257711,2.0639,241.91,241.87,2.0641]
[1732747258020,6.29429926,241.93,241.86,2.28]
[1732747258318,2.064,241.9,241.83,8.57429926]
[1732747258520,6.29429926,241.92,241.77,2.3615]
[1732747258719,6.29429926,241.87,241.8,2.0647]
[1732747259021,2.0645,241.84,241.8,2.0647]
[1732747259724,2.0644,241.85,241.81,2.0647]
[1732747260020,6.29429926,241.87,241.78,8.57429926]
[1732747260218,2.28,241.89,241.8,2.0648]
[1732747260219,2.0645,241.84,241.8,2.0648]
[1732747260417,51.20493137,241.94,241.8,6.29429926]
[1732747260616,6.29429926,241.99,241.89,6.29429926]
[1732747261822,2.28,242.03,241.89,6.29429926]
[1732747262025,2.0634,241.97,241.91,2.0638]
[1732747262417,6.29429926,241.98,241.91,2.0638]
[1732747262418,2.0634,241.96,241.91,2.0638]
[1732747262717,6.29429926,241.98,241.9,2.0639]
[1732747263222,2.0636,241.94,241.89,2.064]
[1732747263423,2.28,242.03,241.86,8.57429926]
[1732747263618,2.0635,241.96,241.86,8.57429926]
[1732747263925,2.0635,241.96,241.9,2.0639]
[1732747264224,2.0635,241.96,241.86,8.57429926]
[1732747264225,6.29429926,241.97,241.86,8.57429926]
[1732747264727,2.0635,241.95,241.86,8.57429926]
[1732747265023,6.29429926,241.97,241.86,8.57429926]
[1732747265924,2.0636,241.94,241.89,2.064]
[1732747266118,2.0636,241.94,241.86,8.57429926]
[1732747266318,2.0636,241.94,241.86,2.28]
[1732747266526,2.0636,241.94,241.9,2.0639]
[1732747268819,7.50779926,241.97,241.86,2.28]
[1732747269018,6.29429926,241.91,241.83,2.26]
[1732747269219,6.29429926,241.91,241.81,6.29429926]
[1732747269526,6.29429926,241.91,241.86,2.0643]
[1732747269527,2.0641,241.89,241.86,2.0643]
[1732747269732,6.29429926,241.91,241.81,8.55429926]
[1732747270321,6.29429926,241.91,241.85,2.0643]
[1732747270322,2.0641,241.88,241.85,2.0643]
[1732747271124,2.064,241.89,241.85,2.0643]
[1732747271723,1.2009,241.96,241.86,6.29429926]
[1732747271921,2.0635,241.95,241.89,2.064]
[1732747272120,1.2009,241.96,241.86,6.29429926]
[1732747272319,1.2009,241.96,241.87,2.26]
[1732747272524,1.2009,241.96,241.93,2.0637]
[1732747273027,1.2009,241.96,241.87,2.26]
[1732747273224,2.0636,241.94,241.91,2.0638]
[1732747273523,6.29429926,241.95,241.82,2.98364695]
[1732747273722,1.2009,241.96,241.83,2.0645]
[1732747273723,2.0642,241.87,241.83,2.0645]
[1732747273929,6.29429926,241.89,241.79,6.29429926]
[1732747274132,1.2732,241.88,241.79,6.29429926]
[1732747274530,1.2732,241.88,241.76,2.26]
[1732747274531,2.0642,241.87,241.76,2.26]
[1732747274832,2.0642,241.87,241.79,6.29429926]
[1732747275233,2.0642,241.87,241.83,2.0645]
[1732747277925,2.0642,241.87,241.82,2.0646]
[1732747278132,2.0642,241.87,241.8,6.29429926]
[1732747278930,2.0642,241.87,241.79,2.0648]
[1732747279130,2.0642,241.87,241.81,6.29429926]
[1732747279736,2.0642,241.87,241.84,2.0644]
[1732747282740,1.2732,241.88,241.81,6.29429926]
[1732747282942,3.3373,241.88,241.81,6.29429926]
[1732747283133,1.2009,241.96,241.81,6.29429926]
[1732747283334,1.2721,241.95,241.84,6.29429926]
[1732747283736,6.29429926,241.94,241.84,6.29429926]
[1732747283939,2.0638,241.92,241.88,2.064]
[1732747286338,2.0638,241.92,241.84,6.29429926]
[1732747286540,2.0638,241.92,241.89,2.064]
[1732747290747,2.0637,241.94,241.91,2.0638]
[1732747292342,3.3356,241.95,241.91,2.0638]
[1732747292746,1.2721,241.95,241.86,6.29429926]
[1732747292940,52.03684759,241.98,241.88,6.29429926]
[1732747293246,1.2197,242.07,241.94,6.29429926]
[1732747293442,7.51399926,242.07,241.97,6.29429926]
[1732747293643,9.57649926,242.07,242.03,2.0628]
[1732747293851,3.2822,242.07,242.03,2.0628]
[1732747294044,9.57649926,242.07,242.03,2.0628]
[1732747294449,2.0626,242.06,242.02,2.0629]
[1732747294644,2.0626,242.06,241.98,8.55429926]
[1732747295044,7.51399926,242.07,241.98,2.26]
[1732747295240,2.0627,242.05,241.98,2.26]
[1732747295949,2.0627,242.05,242.0,2.0631]
[1732747296843,2.0631,242.0,241.96,2.0634]
[1732747297149,6.29429926,241.98,241.85,2.26]
[1732747297351,6.29429926,241.98,241.87,6.29429926]
[1732747298252,6.29429926,241.97,241.87,6.29429926]
[1732747298553,6.29429926,241.97,241.89,6.29429926]
[1732747299147,2.0635,241.95,241.91,2.0638]
[1732747301755,1.2555,241.99,241.94,2.0635]
[1732747301756,3.3187,241.99,241.94,2.0635]
[1732747305256,3.3187,241.99,241.95,2.0635]
[1732747305457,1.2197,242.07,241.93,6.29429926]
[1732747305656,6.29429926,242.04,241.94,2.26]
[1732747306056,2.0629,242.03,241.94,2.26]
[1732747306458,1.2886,242.1,241.98,6.29429926]
[1732747306658,2.0626,242.06,242.02,2.0628]
[1732747307765,2.0625,242.07,242.03,2.0628]
[1732747307964,2.0625,242.07,242.0,2.26]
[1732747308862,2.0625,242.07,242.03,2.0628]
[1732747311561,2.0625,242.07,242.02,2.0628]
[1732747312563,2.0626,242.06,242.02,2.0628]
[1732747312959,2.0626,242.06,242.03,2.0628]
[1732747313157,2.0626,242.06,242.0,2.26]
[1732747313956,2.0626,242.06,242.02,2.0629]
[1732747316857,2.0627,242.05,242.02,2.0629]
[1732747317858,6.29429926,242.08,242.02,2.0629]
[1732747318064,2.0626,242.06,242.02,2.0629]
[1732747318668,8.35689926,242.06,242.02,2.0629]
[1732747319567,2.0626,242.06,242.02,2.0629]
[1732747321562,6.29429926,242.07,242.02,2.0629]
[1732747321760,2.0627,242.05,242.02,2.0629]
[1732747322866,6.29429926,242.03,241.9,1.161]
[1732747323066,2.0631,242.0,241.91,2.26]
[1732747323263,6.29429926,242.01,241.87,4.74077536]
[1732747323463,6.29429926,241.99,241.9,6.29429926]
[1732747323670,2.0633,241.97,241.9,6.29429926]
[1732747323965,6.29429926,241.99,241.9,6.29429926]
[1732747324275,2.0634,241.96,241.93,2.0637]
[1732747326072,2.0633,241.97,241.93,2.0637]
[1732747326874,1.2646,242.0,241.92,6.29429926]
[1732747327068,2.0629,242.02,241.98,2.0632]
[1732747327273,4.1241,242.13,241.97,2.26]
[1732747327274,6.29429926,242.06,241.97,2.26]
[1732747327675,2.0628,242.04,241.97,2.26]
[1732747327880,6.29429926,242.06,241.97,2.26]
[1732747328380,2.26,242.17,241.99,6.29429926]
[1732747328587,6.29429926,242.09,241.99,6.29429926]
[1732747329884,6.29429926,242.09,241.97,2.26]
[1732747330187,6.29429926,242.06,241.97,2.26]
[1732747331687,2.063,242.01,241.97,4.3232]
[1732747333384,2.063,242.01,241.97,2.26]
[1732747333588,2.063,242.01,241.98,2.0632]
[1732747336488,1.2142,242.07,241.97,2.26]
[1732747336685,6.29429926,242.05,242.0,2.063]
[1732747337990,2.0628,242.03,242.0,2.063]
[1732747339490,2.0625,242.07,242.03,2.0628]
[1732747342290,2.0623,242.09,241.99,6.29429926]
[1732747343291,2.0624,242.08,242.04,2.0626]
[1732747343492,2.0624,242.08,241.99,6.29429926]
[1732747343493,2.0624,242.08,242.03,2.26]
[1732747343996,2.0624,242.08,242.04,2.0627]
[1732747345396,6.29429926,242.1,242.06,2.0625]
[1732747345397,8.35659926,242.1,242.06,2.0625]
[1732747345793,6.29429926,242.1,242.06,2.0625]
[1732747346100,2.0623,242.09,242.05,2.0626]
[1732747346399,2.0623,242.09,242.03,2.26]
[1732747346598,2.0623,242.09,242.03,8.55429926]
[1732747346795,2.0622,242.1,242.06,2.0625]
[1732747347190,2.0622,242.1,242.03,8.55429926]
[1732747347400,2.0622,242.1,242.05,2.0626]
[1732747348496,2.0622,242.1,242.03,8.55429926]
[1732747348703,2.0622,242.1,242.06,2.0626]
[1732747353900,1.281,242.15,242.03,8.55429926]
[1732747354105,6.29429926,242.13,242.03,8.55429926]
[1732747354910,2.0622,242.11,242.08,2.0624]
[1732747356207,6.29429926,242.11,241.97,2.06539989]
[1732747356409,6.29429926,242.09,241.98,5.23500571]
[1732747356710,6.29429926,242.09,242.01,2.0629]
[1732747356711,1.2653,242.08,242.01,2.0629]
[1732747356914,2.0626,242.06,242.01,2.0629]
[1732747358715,2.0626,242.06,242.02,2.0629]
[1732747360618,2.0627,242.05,242.02,2.0629]
[1732747361614,2.0625,242.07,242.03,2.0627]
[1732747362417,2.0621,242.12,242.04,2.0627]
[1732747362611,6.29429926,242.12,242.04,2.0627]
[1732747363017,1.2542,242.14,242.04,2.0627]
[1732747363219,6.29429926,242.11,242.04,2.0627]
[1732747363614,2.0623,242.09,242.05,2.0626]
[1732747365819,1.2542,242.14,242.02,6.29429926]
[1732747366023,2.0621,242.12,242.08,2.0624]
[1732747366215,6.29429926,242.13,242.02,6.29429926]
[1732747366416,2.0622,242.11,242.07,2.0624]
[1732747366617,1.2542,242.14,242.06,2.24]
[1732747368016,2.0621,242.12,242.09,2.0622]
[1732747370615,6.29429926,242.12,242.06,2.24]
[1732747371221,2.0623,242.1,242.07,2.0624]
[1732747371417,6.29429926,242.12,242.06,2.24]
[1732747371623,6.29429926,242.12,242.06,4.3025]
[1732747371624,2.0622,242.11,242.06,4.3025]
[1732747371923,6.29429926,242.12,242.06,2.24]
[1732747372725,6.29429926,242.12,242.08,2.0623]
[1732747373720,2.0621,242.11,242.08,2.0623]
[1732747373916,2.0621,242.11,242.06,2.24]
[1732747374922,2.0621,242.11,242.07,2.0624]
[1732747376628,2.0621,242.12,242.08,2.0623]
[1732747379123,1.281,242.15,242.06,2.24]
[1732747379327,2.0619,242.14,242.1,2.0621]
[1732747379827,2.0619,242.14,242.06,2.24]
[1732747379828,7.57529926,242.15,242.06,2.24]
[1732747380129,2.062,242.13,242.09,2.0623]
[1732747380627,2.0621,242.11,242.07,2.0624]
[1732747380826,6.29429926,242.12,242.07,2.0624]
[1732747381826,2.0622,242.11,242.08,2.0624]
[1732747382132,6.29429926,242.12,242.06,2.24]
[1732747383130,2.0621,242.11,242.07,2.0624]
[1732747383530,6.29429926,242.12,242.06,2.24]
[1732747383927,6.29429926,242.12,242.05,2.24]
[1732747384233,2.0622,242.1,242.05,4.3026]
[1732747385233,2.0624,242.09,242.05,2.24]
[1732747385430,2.0624,242.09,242.06,2.0625]
[1732747386325,6.29429926,242.12,242.05,2.24]
[1732747386530,1.281,242.15,242.05,2.24]
[1732747386832,6.29429926,242.12,242.04,2.24]